Cogmind - Beta 16 @@@ ROGUE MODE // 2025.12.04 @ 22:03:03 Player: FR-13D Result: Destroyed by U1-VXI(R) with Subdweller Laser Performance ------------- Evolutions (0) 0 Regions Visited (2) 400 Robots Destroyed (36) 180 Value Destroyed (748) 748 Prototype IDs (16) 320 Alien Tech Used (0) 0 Bonus (0) 0 TOTAL SCORE: 1648 Bonus ------- None Cogmind --------- Core Integrity 0/250 Matter 295/300 Energy 250/250 System Corruption 0% Temperature Cool (6) Movement Treading (240) Ox1 Location -10/Subcaves Parts ------- > --- POWER (1) -------- Ion Engine > --- PROPULSION (2) --- Light Treads Light Treads > --- UTILITY (2) ------ Heat Sink High-capacity Storage Unit > --- WEAPON (2) ------- Battle Rifle Subdweller Machine Gun > --- INVENTORY (20) --- Subdweller Power Source Wheel Wheel Subdweller Monowheel Subdweller Monowheel Improved Heat Sink Large Matter Pod (150) Subdweller Laser Beam Cannon Assault Rifle Light Assault Rifle Battle Rifle Battle Cannon Battle Cannon Subdweller Shrapnel Launcher Mining Laser Flamer Flamer Peak State ------------ > --- POWER ------------ Ion Engine > --- PROPULSION ------- Wheel Subdweller Monowheel > --- UTILITY ---------- High-capacity Storage Unit Seismic Detector > --- WEAPON ----------- Subdweller Machine Gun Battle Cannon > --- INVENTORY -------- Ion Engine Subdweller Power Source Light Treads Light Treads Light Treads Wheel Subdweller Monowheel Heat Sink Improved Heat Sink Large Matter Pod Subdweller Laser Beam Cannon Assault Rifle Light Assault Rifle Battle Rifle Battle Rifle Battle Cannon Mining Laser Flamer Flamer [Rating: 13] Favorites ----------- Power Ion Engine Engine Ion Engine Propulsion Light Treads Treads Light Treads Wheel Wheel Utility High-capacity Storage Unit Device Seismic Detector Storage High-capacity Storage Unit Weapon Subdweller Machine Gun Energy Gun Subdweller Laser Energy Cannon Beam Cannon Ballistic Gun Subdweller Machine Gun Ballistic Cannon Battle Cannon Launcher Subdweller Shrapnel Launcher Special Weapon Mining Laser Build | -11 -10 -10 ------- Run | Yrd Mat Sub Slots Evolved . | . . . Power . | . . . Propulsion . | . . . Utility . | . . . Weapon . | . . . Parts Attached 31 | 7 13 11 Power 3 | 1 2 . Engine 3 | 1 2 . Core . | . . . Reactor . | . . . Propulsion 8 | 2 3 3 Treads 3 | . 2 1 Leg . | . . . Wheel 5 | 2 1 2 Hover . | . . . Flight . | . . . Utility 5 | 2 2 1 Device 2 | 1 . 1 Storage 3 | 1 2 . Processor . | . . . Hackware . | . . . Protection . | . . . Artifact . | . . . Weapon 15 | 2 6 7 Energy Gun 3 | 1 . 2 Energy Cannon 2 | . 2 . Ballistic Gun 6 | 1 2 3 Ballistic Cannon 1 | . . 1 Launcher 2 | . 1 1 Special Weapon 1 | . 1 . Impact Weapon . | . . . Slashing Weapon . | . . . Piercing Weapon . | . . . Special Melee Weapon . | . . . Unidentified Prototypes . | . . . Parts Lost 5 | . . 5 Power . | . . . Propulsion 2 | . . 2 Utility 1 | . . 1 Weapon 2 | . . 2 Highest Loss Streak 1 | . . 1 To Critical Strikes . | . . . Average Backups 16 | 4 9 18 Power 1 | . . 1 Propulsion 4 | 2 4 4 Utility 2 | . 2 2 Weapon 8 | 1 3 9 Tool/Special . | . . . Unused Backups 12 | 1 2 9 Power 2 | . 1 1 Propulsion 4 | 1 1 2 Utility 2 | . . 2 Weapon 4 | . . 4 Tool/Special . | . . . Average Slot Usage (%) 99 | . 100 99 Engine 14 | . 14 14 Treads 15 | . 1 18 Wheel 12 | . 26 9 Device 13 | . 14 13 Storage 14 | . 14 14 Energy Gun 5 | . 1 6 Energy Cannon 4 | . 12 2 Ballistic Gun 13 | . 13 13 Ballistic Cannon 2 | . . 2 Launcher 1 | . . 1 Special Weapon 1 | . . 1 Peak Build Rating 13 | 7 8 13 Average Rating 10 | 5 7 11 On Entrance 5 | . 7 8 Avg Prop Armor Cover (%) . | . . . Naked Turns . | . . . Heaviest Build 58 | 11 51 58 Greatest Support 40 | 20 40 40 Greatest Overweight (x) 5 | . 2 5 Average Overweight (x) 1 | . 1 1 Largest Inventory Capacity 20 | 8 20 20 Average Capacity 18 | 7 15 20 Most Carried 20 | 8 12 20 Average Carried 16 | 4 9 18 Final Capacity 20 | 8 20 20 Final Carried 18 | 8 12 18 Class Distribution -------------------- 59% | Scavenger-Mutant 40% | Mutant Dominant Class ---------------- Mutant | -10/Materials Scavenger-Mutant | -10/Subcaves Resources | -11 -10 -10 ----------- Run | Yrd Mat Sub Matter Collected 1263 | 289 331 643 Remotely . | . . . Salvage Created 1062 | 138 470 454 Parts 70 | 13 26 31 Haulers Intercepted 2 | . 2 . Recyclers Shooed 1 | 1 . . Parts Field Recycled . | . . . Retrieved Matter . | . . . Parts Self-Destructed 8 | . . 8 Prevented . | . . . Parts Restored . | . . . Kills | -11 -10 -10 ------- Run | Yrd Mat Sub Combat Hostiles Destroyed 22 | . 7 15 Guns 11 | . 1 10 Cannons 7 | . 2 5 AOE 4 | . 4 . Classes Destroyed 9 | 2 6 1 Worker 2 | . 2 . Builder 2 | . 2 . Tunneler 5 | 5 . . Hauler 2 | . 2 . Recycler 2 | 1 1 . Watcher 1 | . 1 . Swarmer 7 | . 3 4 Grunt 4 | . 4 . Subdweller 11 | . . 11 Best Kill Streak 7 | 2 7 4 Combat Bots Only 4 | . 3 4 Max Kills in Single Turn 3 | 1 3 1 Gunslinging . | . . . Exploded 2 | . 2 . Melee . | . . . Uniques/NPCs Destroyed . | . . . Combat | -11 -10 -10 -------- Run | Yrd Mat Sub Hostile Shots Fired 95 | . 23 72 Missed 37 | . 7 30 Hits 58 | . 16 42 Projectile 58 | . 16 42 AOE 1 | . . 1 Critical Strikes 1 | . . 1 Damage Taken 996 | . 245 751 Core 255 | . 99 156 Absorbed by Shields . | . . . Core Remaining (%) 100 | 100 . . Volleys Fired 141 | 20 35 86 Largest 2 | 2 2 2 Hottest 160 | 60 160 125 Shots Fired 229 | 38 68 123 Gun 129 | 38 33 58 Cannon 77 | . 31 46 Launcher 4 | . 2 2 Special 19 | . 2 17 Kinetic 102 | 20 31 51 Thermal 123 | 18 35 70 Explosive 4 | . 2 2 Electromagnetic . | . . . Robot Hit Streak 11 | 10 6 11 Robot Miss Streak 3 | 3 3 3 Penetration Max . | . . . Secondary Targets 2 | . . 2 Max Gunslinging Chain 1 | . . 1 Shots Hit Robots 120 | 23 37 60 Core Hits 54 | 7 21 26 Critical Kills . | . . . Critical Parts Destroyed . | . . . Critical Strikes 1 | . . 1 Destroy 1 | . . 1 Melee Attacks . | . . . Impact . | . . . Slashing . | . . . Piercing . | . . . Sneak Attacks . | . . . Combat Hostiles . | . . . Follow-up Attacks . | . . . Damage Inflicted 2188 | 216 730 1242 Guns 1183 | 216 221 746 Cannons 617 | . 247 370 Explosions 388 | . 262 126 Melee . | . . . Ramming . | . . . Kinetic 815 | 91 211 513 Thermal 985 | 125 257 603 Explosive 352 | . 226 126 Electromagnetic 36 | . 36 . Impact . | . . . Slashing . | . . . Piercing . | . . . Highest Corruption . | . . . Average Corruption . | . . . Corruption Purged . | . . . Corruption Blocked . | . . . Overload Shots . | . . . Overflow Damage 2 | . 2 . Projectiles . | . . . Explosions 2 | . 2 . Melee . | . . . Knockbacks 2 | . . 2 Impact . | . . . Kinetic 2 | . . 2 Secondary . | . . . Self-Inflicted Damage 47 | . 47 . Shots 2 | . 2 . Rammed . | . . . Targets Rammed . | . . . Kicked . | . . . Crushed . | . . . Highest Temperature 243 | 40 243 1 Average Temperature 57 | 19 69 1 Received Heat Transfer 237 | . 99 138 Effects 1 | . 1 . Energy Bleed 1 | . 1 . Siege Activations . | . . . Martial Activations . | . . . Shielding Activations . | . . . Robots Disrupted . | . . . Combat Hostiles . | . . . Robots Corrupted . | . . . Combat Hostiles . | . . . Parts Fried . | . . . Impact Corruptions . | . . . Robots Melted . | . . . Combat Hostiles . | . . . Parts Melted 1 | . . 1 Heat Transferred 1895 | 275 543 1077 Parts Sabotaged . | . . . Parts Stolen . | . . . Parts Stripped . | . . . Power Chain Reactions . | . . . Alert | -11 -10 -10 ------- Run | Yrd Mat Sub Maximum Alert Level . | . . . Low Security (%) 100 | 100 100 . Level 1 . | . . . Level 2 . | . . . Level 3 . | . . . Level 4 . | . . . Level 5 . | . . . High Security . | . . . Max Security . | . . . Peak Influence 111 | 10 111 . Initial . | . . . Average 31 | 1 37 . Influence Increases 437 | 30 297 110 Destroy 0b10 Robot/C 220 | . 140 80 Destroy 0b10 Robot/NC 70 | 30 40 . Destroy Leader 36 | . 36 . Successful Hack 14 | . 14 . Disable Machine 15 | . 15 . Destroy Structure 22 | . 22 . Partial Spotted 15 | . 15 . Lose Combat Pursuer 45 | . 15 30 Influence Decreases 437 | 30 288 119 Entered New Map 5 | . . 5 Time Decay 422 | 30 288 104 Lost Part 10 | . . 10 Squads Dispatched 2 | . 2 . Investigation . | . . . Extermination . | . . . Reinforcement 2 | . 2 . Assault . | . . . Garrison . | . . . Intercept . | . . . Searches Triggered . | . . . Construction Impeded . | . . . Haulers Reinforced . | . . . Active Scanning Responses . | . . . Cargo Convoy Interrupts . | . . . Stealth | -11 -10 -10 --------- Run | Yrd Mat Sub Distress Signals 1 | . 1 . Communications Jammed . | . . . Distress Signals . | . . . Times Spotted 31 | . 12 19 Peak Tracking Total 6 | . 3 6 Tactical Retreats 2 | . 1 1 Traps | -11 -10 -10 ------- Run | Yrd Mat Sub Traps Triggered . | . . . Indirectly . | . . . Trap Hack Attempts . | . . . Triggered . | . . . Disarmed 9 | . 9 . Reprogrammed . | . . . Reused . | . . . Traps Extracted . | . . . Installed . | . . . Triggered . | . . . Machines | -11 -10 -10 ---------- Run | Yrd Mat Sub Machines Disabled 1 | . 1 . Max in Single Turn 1 | . 1 . Machines Repaired . | . . . Machines Dismantled . | . . . Machines Sabotaged . | . . . Overloaded Fab Kills . | . . . Hacking | -11 -10 -10 --------- Run | Yrd Mat Sub Machines Accessed 7 | . 5 2 Terminals 5 | . 5 . Fabricators . | . . . Repair Stations . | . . . Recycling Units . | . . . Scanalyzers . | . . . Garrison Access . | . . . Total Hacks 12 | . 10 2 Successful 11 | . 9 2 Failed 1 | . 1 . Catastrophic . | . . . Database Lockouts . | . . . Manual 4 | . 4 . Terminals 10 | . 10 . Fabricators . | . . . Repair Stations . | . . . Recycling Units . | . . . Scanalyzers . | . . . Garrison Access . | . . . Terminal Hacks 8 | . 6 2 Record 1 | . . 1 Prototype ID Bank 2 | . 2 . Locate Traps 2 | . 2 . Disarm Traps 2 | . 2 . Proto ID Catalog 1 | . . 1 Fabricator Hacks . | . . . Repair Station Hacks . | . . . Recycling Unit Hacks . | . . . Scanalyzer . | . . . Garrison Access Hacks . | . . . Unauthorized Hacks 3 | . 3 . Terminals 3 | . 3 . Botnet 3 | . 3 . Fabricators . | . . . Repair Stations . | . . . Recycling Units . | . . . Scanalyzers . | . . . Garrison Access . | . . . Data Cores Recovered . | . . . Used . | . . . Hacking Detections 4 | . 4 . Full Trace Events . | . . . Feedback Events . | . . . Feedback Blocked . | . . . Robot Schematics Acquired . | . . . Robots Built . | . . . Authchips . | . . . Time . | . . . Total Robot Build Rating . | . . . Part Schematics Acquired . | . . . Parts Built . | . . . Authchips . | . . . Time . | . . . Total Part Build Rating . | . . . Part Studies Acquired . | . . . Parts Repaired . | . . . Time . | . . . Parts Recycled . | . . . Recycled Matter . | . . . Retrieved Matter . | . . . Retrieved Components . | . . . Parts Scanalyzed . | . . . Part Schematics Acquired . | . . . Parts Damaged . | . . . Bothacking | -11 -10 -10 ------------ Run | Yrd Mat Sub Used RIF Installer . | . . . Robots Hacked . | . . . Non-combat . | . . . Combat . | . . . Robot Hacks Applied . | . . . Relay Couplers Released . | . . . Fabnet Peak Effective % . | . . . Robots Rewired . | . . . Allies Hacked . | . . . Hacks Repelled . | . . . Allies | -11 -10 -10 -------- Run | Yrd Mat Sub Total Allies . | . . . Largest Group . | . . . Highest-Rated Group . | . . . Highest-Rated Ally . | . . . Total Orders . | . . . Ally Attacks . | . . . Total Damage . | . . . Kills . | . . . Allies Corrupted . | . . . Allies Melted . | . . . Intel | -11 -10 -10 ------- Run | Yrd Mat Sub Active Infowar (turns) 2470 | 10 817 1643 Seismic 2470 | 10 817 1643 Robot Analysis Total . | . . . Derelict Logs Recovered 2 | . . 2 Drone Launches . | . . . Drone Recoveries . | . . . Exploration | -11 -10 -10 ------------- Run | Yrd Mat Sub Turns Passed 4551 | 163 817 3571 Spaces Moved 2497 | 112 491 1894 Core 2 | 2 . . Treads 872 | . 3 869 Legs . | . . . Wheels 1623 | 110 488 1025 Hover . | . . . Flight . | . . . Fastest Speed 50 | 50 80 107 Average Speed 150 | 79 96 168 Slowest Speed 240 | 80 160 240 Overloaded Moves . | . . . Propulsion Burnouts . | . . . Robots Hopped . | . . . Potential Cave-ins . | . . . Cave-ins Triggered . | . . . Exploration Rate (%) 56 | 5 73 91 Regions Visited 2 Branch Regions 1 Pre-discovered Areas . | . . . Known Exits Taken . | . . . Unknown Exits Taken 2 | 1 1 . Scrap Searched 3 | . . 3 Spaces Dug 2 | . 2 . Terrain Destroyed 33 | . 22 11 Melee . | . . . Projectile 4 | . 2 2 AOE 29 | . 20 9 Terrain Rammed . | . . . Walls Destroyed . | . . . Machines Disabled . | . . . Actions | -11 -10 -10 --------- Run | Yrd Mat Sub Total 3006 | 148 767 2091 Wait 259 | . 208 51 Move 2495 | 111 490 1894 Hop . | . . . Pick Up 31 | 9 7 15 Fast Attach 8 | 7 . 1 Attach 6 | . . 6 Detach . | . . . Swap 50 | . 17 33 Drop 16 | 1 10 5 Fire 141 | 20 35 86 Melee . | . . . Ram . | . . . Kick . | . . . Crush . | . . . Escape Stasis . | . . . Rewire . | . . . Trap . | . . . Miscellaneous . | . . . Route ------- -11/Scrapyard -10/Materials (discovered 4 exits: [*Mat x2] / [*Min] / *Sub) -10/Subcaves (discovered 2 exits: [*Mat x2]) History --------- Turn | Location | Event 16 | -11/Scrapyard | Discovered new exit (range 15) 164 | -11/Scrapyard | Entered Materials 304 | -10/Materials | Build established: Mutant 336 | -10/Materials | Discovered new exit (range 16) 579 | -10/Materials | Discovered new exit (range 14) 767 | -10/Materials | Discovered new exit (range 7) 962 | -10/Materials | Discovered new exit (range 8) 981 | -10/Materials | Entered Subcaves 982 | -10/Subcaves | Approached by a straggling Scientist 1015 | -10/Subcaves | Shifting Twisted Machinery released Flamer 1023 | -10/Subcaves | Shifting Twisted Machinery released Flamer 1316 | -10/Subcaves | Core integrity fell below 50% 1358 | -10/Subcaves | Learned Materials security intel 1771 | -10/Subcaves | Visited Clippyterm 1812 | -10/Subcaves | Discovered new exit (range 12) 2012 | -10/Subcaves | Shifting Twisted Machinery released Battle Cannon 2042 | -10/Subcaves | Discovered new exit (range 16) 2105 | -10/Subcaves | Learned Materials security intel 2126 | -10/Subcaves | Visited 4L-MR0's lab 2223 | -10/Subcaves | Build established: Scavenger-Mutant 2242 | -10/Subcaves | Shifting Twisted Machinery released Flamer 2280 | -10/Subcaves | Ambushed by Subdweller buried in earth 2426 | -10/Subcaves | Core integrity fell below 20% 4304 | -10/Subcaves | A swath of the cavern ceiling suddenly collapsed 4552 | -10/Subcaves | Destroyed by U1-VXI(R) with Subdweller Laser Last Messages --------------- 03237_ Sub. Machine Gun shoots sparks and powers down. 03241_ VM-4ND(R) affixes Scrap Shield Fragment to Scrap Shield. 03246_ VM-4ND(R) destroyed. 03258_ Acquired 31 matter. 03267_ Acquired 12 matter. 03271_ Dropped Broken Sub. Machine Gun. 03347_ Acquired 10 matter. 04040_ A3-PSL(u) deconstructs Twisted Machinery. 04287_ Sub. Laser shoots sparks and powers down. 04292_ Lgt. Treads destroyed. 04294_ SD-92Y(R) destroyed. 04298_ Acquired 35 matter. 04300_ Subatomizers dissect the Disposable Heat Sink. 04303_ Acquired 17 matter. 04304_ Disposable Heat Sink crushed. 04304_ Sub. Power Source crushed. 04304_ Scrap Shield Fragment crushed. 04304_ 8 Matter crushed. A swath of the cavern ceiling suddenly collapses. 04305_ Acquired 8 matter. Map ----- +----------------------------------------------------+ | | | | | | | | | | | | | | | | | ?????????????????????????????????????????????????? | | ?????????????????????????????????????????????????? | | ?????????????????????????????????????????????????? | | ?????????????????????????????????????????????????? | | ?????????????????????????????????????????????????? | | ?????????????????????????????????????????????????? | | ?????????????????????????????????????????????????? | | ?????????????????????????????????????????????????? | | ?????????????????????????????????????????????????? | | ?????????????????????????????????????????????????? | | ?????????????????????????????????????????????????? | | ?????????????????????????????#???????????????????? | | ?????????????????????????????# ??????????????????? | | ?????????????????????????????# ####??????????????? | | ??????????????????#???????????" ###????????????? | | ?????????????????## ????####### ## ##???????????? | | ?????????????????# ### ## #< < ###?????????? | | ??????????###????# @ R #?????????? | | ?????????##"###### ##????????? | | ?????????#""#"# ### ## # ###??????? | | ?????????###""# ## ??## ##?????? | | ?????????###"%## ## #?????? | | ?????????# #"# ###?# ##?????? | | ?????????##"###"### # ## #??????? | | ?????????###?## "##?# ### #??????? | | ??#####?????### ###?## ## #??????? | | ?## #####?#"" "##??# #### ### ####???? | | ?# ####" ####?# ???# #?# #???? | | ??# #?### #?#### ???# #?## ### #???? | | #?### ###???## ####?###???#####??####?# #???? | | #???## ##?##### ##??????????????##### #???? | | ##???## ### ## #??????????????# #???? | | ###??# ## #??????????????## #???? | | ##?# ##??????????????## ##???? | | ### #??????????????## ##???? | | ### #??????????????# #???? | | ## ##?????????????### #???? | | #?????????????#### #???? | | ### ####?????????## ### #???? | | ## ##?# ##?????#### ## #???? | | ?# #??## #?????# #???? | | ?# ##??##### #?##### #???? | +----------------------------------------------------+ Best States ------------- Heat Dissipation 35 Energy Generation 10 Energy Capacity 250 Matter Stores 300 Matter Capacity 300 Sight Range 16 Terrain Scan Density 10 Evasion (%) 44 Recoil Reduction 2 Item Schematics ----------------- None Robot Schematics ------------------ None Fabricated ------------ Nothing Repaired ---------- Nothing Studied --------- None Alien Tech Used ----------------- None Achievements -------------- None Challenges ------------ None Game ------ Seed DefenseBombardmentDiverter Manual? 0 Play Time 00:24:33 Cumulative 104.9 hours Start 2025.12.04 @ 21:41:22 End 2025.12.04 @ 22:03:03 Sessions 1 Manual Loads 0 Difficulty Rogue Special Mode None Game No. 109 Rogue 109 Adventurer 0 Explorer 0 Win Type - Total 0 Types 0/0/0/0/0/0/0/0/0/0 Lore% 62 Gallery% 47 Achievement% 39 Wizard Run 0 Options --------- Layout 0 ASCII 0 Keyboard 1 Movement Vi Keybinds 0 Fullscreen 2 Font 18/SmallcapsGlow Map View 76x50 Zoom Use 0% Tactical HUD 1 Map Filters NONE Filters NONE Steam 1 RUN: aec95c1a-4132-4afe-824f-0bab46f8d4fa